bitfinex-derivatives/quotes_ETHF0:USTF0_20220108
["timestamp","ask_amount","ask_price","bid_price","bid_amount"]
[1641680302535,1.60848508,3109.2,3107.9,1.32353355]
[1641680302834,0.96499121,3108.9,3107.9,0.35753355]
[1641680303034,1.62759121,3108.9,3107.9,0.35753355]
[1641680303434,0.9651299,3108.4,3107.9,2.36232355]
[1641680304136,0.9651299,3108.4,3107.9,2.00479]
[1641680304535,0.9651299,3108.4,3107.6,2.00479]
[1641680304934,1.51818489,3108.2,3107.6,2.00479]
[1641680305335,2.00479,3108.1,3107.6,2.00479]
[1641680306137,2.00479,3108.6,3107.6,2.00479]
[1641680306537,2.00479,3108.6,3107.6,3.61315608]
[1641680307342,2.00479,3108.2,3107.6,3.61315608]
[1641680307741,2.00479,3108.2,3107.6,4.27512608]
[1641680308144,2.00479,3108.2,3107.6,3.61315608]
[1641680308343,2.00479,3108.2,3107.6,2.00479]
[1641680308944,0.965273,3108.0,3107.6,2.00479]
[1641680310644,0.965273,3108.0,3107.1,1.6086455]
[1641680310848,0.96539635,3107.6,3107.1,1.6086455]
[1641680311446,1.09345127,3107.6,3107.1,1.6086455]
[1641680312048,1.09345127,3107.6,3106.9,0.68469667]
[1641680312450,1.09345127,3107.6,3106.8,2.00479]
[1641680312650,1.60908295,3108.0,3106.6,1.28848532]
[1641680312948,0.08044,3107.9,3106.6,1.28848532]
[1641680313350,2.00479,3107.2,3106.6,1.28848532]
[1641680313550,2.00479,3107.2,3106.6,1.95045532]
[1641680313752,2.00479,3107.2,3106.6,0.66197]
[1641680315355,2.00479,3107.2,3106.4,2.00479]
[1641680317857,1.19402795,3106.8,3106.4,2.00479]
[1641680319859,1.19402795,3106.8,3106.5,0.66197]
[1641680320560,1.19402795,3106.8,3106.4,2.00479]
[1641680320859,1.19402795,3106.8,3106.4,2.66676]
[1641680321060,2.00479,3107.5,3106.5,0.640787]
[1641680321261,3.15432311,3108.0,3106.6,1.5]
[1641680321463,2.00479,3107.9,3107.2,2.00479]
[1641680321664,2.00479,3107.9,3107.3,0.66197]
[1641680322265,2.00479,3107.9,3107.2,2.00479]
[1641680322465,0.97236413,3107.8,3107.2,2.00479]
[1641680324166,0.97236413,3107.8,3106.6,1.60891467]
[1641680324768,0.96548603,3107.3,3106.6,1.60891467]
[1641680324969,0.96548603,3107.3,3106.6,2.27088467]
[1641680325168,0.96548603,3107.3,3106.6,0.66197]
[1641680325568,2.97027603,3107.3,3106.7,0.640787]
[1641680325768,2.97027603,3107.3,3106.7,1.302757]
[1641680325969,2.97027603,3107.3,3106.7,0.66197]
[1641680326472,2.97027603,3107.3,3106.4,2.00479]
[1641680326669,2.97027603,3107.3,3106.7,0.66197]
[1641680327571,2.97027603,3107.3,3106.4,2.00479]
[1641680327773,3.90367603,3107.3,3106.3,2.00479]
[1641680327971,0.96564221,3106.8,3106.3,2.00479]
[1641680328172,0.96564221,3106.8,3105.8,1.60929529]
[1641680329473,2.00479,3106.4,3105.8,1.60929529]
[1641680329675,2.00479,3106.4,3105.9,1.302757]
[1641680329874,2.00479,3106.4,3105.9,0.66197]
[1641680330277,0.5893,3106.5,3105.9,0.66197]
[1641680331475,2.59409,3106.5,3105.9,0.66197]
[1641680332074,0.5893,3106.5,3105.9,1.302757]
[1641680332273,1.60960872,3107.0,3105.9,1.302757]
[1641680332473,30.7035,3107.2,3105.9,1.302757]
[1641680332673,2.00479,3107.3,3105.9,1.302757]
[1641680333075,3.6142122,3107.3,3105.9,1.302757]
[1641680333477,5.6190022,3107.3,3106.3,2.00479]
[1641680333677,0.96556404,3107.0,3106.3,2.00479]
[1641680334077,5.6190022,3107.3,3106.4,0.66197]
[1641680334295,0.08046,3107.9,3106.6,1.5]
[1641680334477,2.99899482,3108.1,3106.6,1.5]
[1641680334478,1.6090467,3108.1,3106.6,1.5]
[1641680334677,1.60882149,3108.5,3106.7,1.60882149]
[1641680334877,1.60882149,3108.5,3106.8,1.5]
[1641680335279,1.60882149,3108.5,3107.0,1.5]
[1641680335581,2.00479,3108.6,3107.8,2.00479]
[1641680335781,0.96481505,3109.5,3107.9,1.302757]
[1641680335982,0.96481505,3109.5,3108.2,1.5]
[1641680336181,3.20139342,3110.0,3108.5,1.60790834]
[1641680336380,2.70939342,3110.0,3108.6,1.5]
[1641680336580,0.81281151,3109.7,3108.6,1.5]
[1641680337180,0.81281151,3109.7,3108.7,14.05]
[1641680337381,0.81281151,3109.7,3108.8,1.5]
[1641680337585,2.03204507,3110.6,3109.6,3.50479]
[1641680337780,2.03204507,3110.6,3109.6,2.83759]
[1641680337982,2.03204507,3110.6,3109.7,1.5]
[1641680338184,2.03204507,3110.6,3109.9,1.60719767]
[1641680338384,2.03204507,3110.6,3110.0,1.302757]
[1641680338583,2.70939342,3110.8,3110.0,1.302757]
[1641680338783,2.07909767,3111.6,3110.0,1.302757]
[1641680339585,2.00479,3111.4,3110.6,2.00479]
[1641680339785,2.00479,3111.4,3110.7,0.66197]
[1641680340388,2.00479,3111.4,3110.8,0.640787]
[1641680341189,2.00479,3111.4,3110.9,0.66197]
[1641680341789,0.4719,3111.6,3110.9,0.66197]
[1641680343489,0.4719,3111.6,3111.5,2.00479]
[1641680343690,0.4719,3111.6,3111.5,1.302757]
[1641680343890,2.00479,3112.5,3111.5,1.302757]
[1641680344192,0.4823,3112.5,3111.5,2.161157]
[1641680345492,0.4823,3112.5,3111.9,2.00479]
[1641680346394,0.4823,3112.5,3111.9,1.36467]
[1641680346793,2.00479,3112.8,3111.9,1.36467]
[1641680346993,2.49729,3112.8,3111.9,1.36467]
[1641680347193,0.4925,3112.8,3111.9,1.36467]
[1641680347393,2.00479,3113.0,3111.9,1.36467]
[1641680347394,0.4762,3112.9,3111.9,1.36467]
[1641680347592,0.4762,3112.9,3112.5,2.00479]
[1641680347792,0.4762,3112.9,3112.6,1.302757]
[1641680347992,0.4762,3112.9,3112.6,1.933557]
[1641680349194,2.00479,3113.0,3112.6,1.933557]
[1641680353200,2.00479,3113.0,3112.6,0.6308]
[1641680353500,2.00479,3113.0,3112.2,2.00479]
[1641680353703,2.00479,3113.0,3112.3,1.302757]
[1641680356305,2.00479,3113.0,3112.2,2.00479]
[1641680356904,2.72589,3113.0,3111.8,2.00479]
[1641680357707,2.96862249,3112.6,3111.8,2.00479]
[1641680358005,2.96862249,3112.6,3110.7,0.08031]
[1641680358006,1.60701171,3112.0,3110.2,2.65188302]
[1641680358207,2.29361171,3112.0,3110.2,1.60701171]
[1641680358608,1.50883448,3111.9,3110.6,1.60680256]
[1641680359307,0.96413563,3111.6,3110.6,1.60680256]
[1641680359708,2.00479,3111.3,3110.6,1.60680256]
[1641680360609,2.00479,3111.3,3110.5,2.00479]
[1641680360809,2.84959,3111.3,3110.5,2.00479]
[1641680361413,3.81384738,3111.3,3110.5,2.00479]
[1641680362610,3.10755163,3111.0,3109.2,1.60755163]
[1641680362811,0.96442737,3110.7,3109.2,1.60755163]
[1641680363614,2.00479,3109.8,3109.2,1.60755163]
[1641680363913,2.76059,3109.8,3109.2,1.60755163]
[1641680364311,2.76059,3109.8,3109.2,2.91030863]
[1641680364712,2.76059,3109.8,3108.9,1.60768086]
[1641680364912,2.76059,3109.8,3108.8,2.00479]
[1641680364913,0.08039,3109.7,3108.8,2.00479]
[1641680365213,2.76059,3109.8,3108.8,2.00479]
[1641680365411,2.84098,3109.8,3108.8,2.00479]
[1641680365612,2.00479,3109.3,3108.8,2.00479]
[1641680365813,2.65599975,3109.8,3108.8,2.00479]
[1641680366613,3.95122032,3109.8,3108.8,2.00479]
[1641680367513,5.55936137,3109.8,3108.8,2.00479]
[1641680367713,5.55936137,3109.8,3108.8,2.58159]
[1641680368514,5.47897137,3109.8,3108.8,2.58159]
[1641680369214,4.1837508,3109.8,3108.8,2.58159]
[1641680369415,0.7558,3109.8,3108.8,2.58159]
[1641680369614,2.00479,3110.4,3109.7,2.00479]
[1641680369814,2.00479,3110.4,3109.8,1.302757]
[1641680370014,2.00479,3110.7,3109.8,1.302757]
[1641680370418,0.08037,3111.1,3109.8,1.302757]
[1641680370616,1.15713824,3111.2,3109.8,1.302757]
[1641680370815,1.84373824,3111.2,3109.8,1.302757]
[1641680371015,1.15713824,3111.2,3109.8,1.302757]
[1641680371618,3.16192824,3111.2,3110.4,2.00479]
[1641680371816,3.16192824,3111.2,3110.4,2.94799]
[1641680372016,3.16192824,3111.2,3110.5,1.302757]
[1641680372218,2.00479,3111.2,3110.5,1.302757]
[1641680372420,3.61204192,3111.5,3110.5,1.302757]
[1641680372617,2.00479,3111.5,3110.5,1.302757]
[1641680373616,2.00479,3111.5,3111.0,2.00479]
[1641680373816,2.00479,3111.5,3111.0,2.66676]
[1641680376921,1.60693941,3112.1,3111.0,2.66676]
[1641680377727,0.96403619,3112.0,3111.5,2.00479]
[1641680377920,0.08034,3111.9,3111.5,2.00479]
[1641680378121,0.08034,3111.9,3111.0,2.00479]
[1641680378323,2.57129315,3111.7,3109.9,1.60716668]
[1641680378623,0.96430133,3111.1,3109.9,1.60716668]
[1641680378922,1.89540133,3111.1,3109.9,1.60716668]
[1641680379624,2.00479,3111.0,3110.3,2.00479]
[1641680379824,2.00479,3111.0,3110.4,0.66197]
[1641680380523,2.00479,3111.0,3110.5,0.640787]
[1641680381626,2.00479,3111.0,3110.6,0.66197]
[1641680382626,2.00479,3111.0,3110.6,1.36057]
[1641680383629,2.00479,3111.4,3110.6,1.36057]
[1641680383830,0.96429728,3111.1,3110.3,2.00479]
[1641680384631,1.60772738,3110.6,3110.0,2.00479]
[1641680384830,2.5242403,3110.6,3110.0,2.00479]
[1641680385433,0.08036,3110.5,3110.0,2.00479]
[1641680385833,0.08036,3110.5,3108.6,1.60787731]
[1641680385834,0.96464142,3110.0,3108.6,1.60787731]
[1641680386933,4.96464142,3110.0,3108.6,1.60787731]
[1641680387734,2.00479,3109.2,3108.6,1.60787731]
[1641680387934,2.00479,3109.2,3108.6,2.91063431]
[1641680390137,2.00479,3109.2,3108.6,1.302757]
[1641680396138,2.00479,3109.2,3108.6,0.66197]
[1641680396637,2.00479,3109.2,3108.6,1.302757]
[1641680398739,29.8805,3109.9,3108.6,1.302757]
[1641680398740,3.72966807,3110.5,3108.7,1.60780234]
[1641680398938,2.76517828,3110.5,3108.9,1.5]
[1641680399140,1.60780234,3110.5,3108.9,1.5]
[1641680399639,1.60780234,3110.5,3109.0,14.05]
[1641680399840,2.00479,3110.1,3109.4,2.00479]
[1641680400044,2.00479,3110.1,3109.5,1.302757]
[1641680401944,2.00479,3110.4,3109.5,1.302757]
[1641680402143,31.46991896,3111.2,3109.5,1.302757]
[1641680402344,1.66580365,3112.1,3109.5,1.302757]
[1641680402345,0.80791896,3111.3,3109.8,1.5]
[1641680402545,0.80791896,3111.3,3109.8,3.10721317]
[1641680403147,0.80791896,3111.3,3109.5,2.24800018]
[1641680403148,0.80791896,3111.3,3109.6,0.6866]
[1641680403446,0.80791896,3111.3,3109.8,1.5]
[1641680403645,30.6033,3111.5,3109.5,0.640787]
[1641680403646,30.6033,3111.5,3110.2,1.6070143]
[1641680403845,2.00479,3111.4,3110.7,2.00479]
[1641680404646,1.60725709,3111.5,3110.8,0.640787]
[1641680406349,1.60725709,3111.5,3110.9,0.66197]
[1641680406547,1.60725709,3111.5,3110.9,1.42357]
[1641680407046,1.60725709,3111.5,3110.9,0.7616]
[1641680407749,2.00479,3111.3,3111.0,0.66197]
[1641680408146,0.80791896,3111.9,3111.0,0.66197]
[1641680408547,0.80791896,3111.8,3111.0,0.66197]
[1641680408746,0.80791896,3111.8,3111.2,1.60653151]
[1641680408947,0.80791896,3111.8,3111.3,0.66197]
[1641680409746,2.03204507,3112.7,3111.7,5.61569867]
[1641680409947,2.03204507,3112.7,3111.7,20.3375483]
[1641680410148,2.03204507,3112.7,3111.8,1.60621412]
[1641680410452,2.03204507,3112.7,3112.1,1.60607224]
[1641680410647,2.03204507,3112.7,3112.2,1.302757]
[1641680411048,2.03204507,3112.7,3112.2,0.66197]
[1641680411250,2.70939342,3113.0,3112.2,2.26796744]
[1641680411548,2.00479,3113.3,3112.2,2.26796744]
[1641680411749,2.00479,3113.3,3112.5,2.00479]
[1641680412348,2.00479,3113.3,3112.6,0.66197]
[1641680412552,2.00479,3113.3,3112.7,0.640787]
[1641680412750,2.00479,3113.3,3112.5,2.00479]
[1641680412952,1.5,3113.2,3111.7,2.00479]
[1641680413150,4.23809,3113.3,3111.7,2.00479]
[1641680413349,2.73809,3113.3,3111.7,2.00479]
[1641680413950,2.00479,3112.8,3112.1,2.00479]
[1641680414351,2.73809,3113.3,3112.2,0.66197]
[1641680414550,2.73809,3113.3,3112.1,2.00479]
[1641680414751,0.96370637,3113.0,3112.1,2.00479]
[1641680414950,1.60674576,3112.5,3110.7,1.60674576]
[1641680415151,0.96396775,3112.2,3110.6,1.28848532]
[1641680415555,2.46396775,3112.2,3110.6,1.28848532]
[1641680415754,4.07085293,3112.2,3110.6,1.28848532]
[1641680415954,2.00479,3111.9,3111.2,2.00479]
[1641680416154,2.00479,3111.9,3110.6,1.28848532]
[1641680417256,3.50479,3111.9,3109.8,31.2534]
[1641680417658,2.00479,3111.9,3109.6,1.28848532]
[1641680417857,2.00479,3111.3,3110.6,2.00479]
[1641680418059,2.00479,3111.3,3110.6,2.645577]
[1641680418060,2.81059,3111.3,3110.6,2.645577]
[1641680419459,2.81059,3111.3,3110.7,0.66197]
[1641680420058,2.81059,3111.3,3110.6,2.00479]
[1641680420661,2.81059,3111.3,3110.3,2.00479]
[1641680421860,2.00479,3110.9,3110.3,2.00479]
[1641680422060,2.00479,3110.9,3110.4,1.302757]
[1641680422661,2.00479,3111.3,3110.4,1.302757]
[1641680423265,1.60720284,3111.6,3110.4,1.302757]
[1641680423665,0.96409816,3111.8,3110.4,1.302757]
[1641680423864,2.00479,3111.4,3110.7,2.00479]
[1641680424064,2.00479,3111.4,3110.8,0.66197]
[1641680425664,0.08035,3112.1,3110.8,0.66197]
[1641680425866,2.00479,3112.7,3111.7,2.00479]
[1641680426064,2.00479,3112.7,3111.8,1.302757]
[1641680426865,4.03683507,3113.1,3111.8,1.302757]
[1641680427664,4.03683507,3113.1,3111.8,2.90898402]
[1641680427864,4.03683507,3113.1,3112.7,2.00479]
[1641680428065,4.03683507,3113.1,3112.7,2.73269]
[1641680428266,2.03204507,3113.1,3112.8,0.66197]
[1641680428467,2.70939342,3113.3,3112.7,2.73269]
[1641680428665,36.15838789,3113.7,3112.7,2.73269]
[1641680428666,3.46028789,3113.7,3112.7,2.73269]
[1641680429067,4.96028789,3113.7,3112.7,2.73269]
[1641680429266,3.46028789,3113.7,3112.7,2.73269]
[1641680429669,3.46028789,3113.7,3112.7,0.7279]
[1641680429868,2.00479,3113.1,3112.3,2.00479]
[1641680430070,2.00479,3113.1,3112.0,2.00479]
[1641680430868,0.96380266,3112.7,3112.0,2.00479]
[1641680431271,0.96380266,3112.7,3112.1,0.66197]
[1641680431468,0.96380266,3112.7,3112.1,1.302757]
[1641680431869,2.96859266,3112.7,3112.1,1.302757]
[1641680432470,2.96859266,3112.7,3112.1,0.640787]
[1641680432670,2.96859266,3112.7,3112.0,2.00479]
[1641680433671,2.96859266,3112.7,3112.1,1.302757]
[1641680434674,2.96858934,3112.7,3112.1,1.302757]
[1641680436972,2.96858934,3112.7,3112.1,0.66197]
[1641680437372,3.45838934,3112.7,3112.0,2.00479]
[1641680437570,3.45838934,3112.7,3110.5,2.15538532]
[1641680437771,0.96393776,3112.3,3111.3,3.10645409]
[1641680437971,0.96393776,3112.3,3111.7,2.00479]
[1641680438171,0.96393776,3112.3,3111.8,1.302757]
[1641680439571,4.00958,3112.7,3111.8,1.302757]
[1641680439772,2.00479,3112.7,3111.8,2.043857]
[1641680439972,2.00479,3112.7,3112.2,2.00479]
[1641680440171,2.00479,3112.7,3112.3,0.66197]
[1641680441974,3.50479,3113.3,3112.3,0.66197]
[1641680443373,2.00479,3113.3,3112.3,2.16197]
[1641680443572,3.50479,3113.3,3112.3,2.16197]
[1641680444774,2.00479,3113.3,3112.3,2.16197]
[1641680444976,3.50479,3113.3,3112.3,2.16197]
[1641680446374,3.50479,3113.3,3112.3,0.66197]
[1641680447377,2.00479,3113.3,3112.3,0.66197]
[1641680447579,3.50479,3113.3,3112.3,0.66197]
[1641680447779,0.96365321,3113.2,3112.3,0.66197]
[1641680447978,1.83015321,3113.2,3112.2,4.00958]
[1641680448679,1.83015321,3113.2,3112.2,2.00479]
[1641680449079,0.96368149,3113.1,3112.2,2.00479]
[1641680450081,2.00479,3112.6,3112.2,2.00479]
[1641680450681,0.96386173,3112.5,3112.2,2.00479]
[1641680450884,0.96386173,3112.5,3110.3,1.58824026]
[1641680450885,1.60692391,3112.3,3110.3,1.58824026]
[1641680451083,0.96410658,3111.7,3110.3,0.40672558]
[1641680451283,1.60724934,3111.5,3110.3,0.40672558]
[1641680451483,0.96424851,3111.3,3110.3,0.40672558]
[1641680451887,0.96424851,3111.3,3110.1,0.40672558]
[1641680452085,2.00479,3111.1,3110.4,2.00479]
[1641680452383,2.00479,3111.1,3110.5,1.302757]
[1641680455090,2.00479,3111.1,3110.5,0.66197]
[1641680456292,2.00479,3111.1,3110.5,1.302757]
[1641680460794,0.08035,3112.1,3110.5,1.302757]
[1641680460996,35.5998,3112.6,3110.5,1.302757]
[1641680461197,35.5998,3112.6,3110.5,1.383087]
[1641680461396,30.1858,3112.6,3111.1,1.60657281]
[1641680461595,2.03204507,3112.7,3111.1,2.51457281]
[1641680461994,2.00479,3112.5,3111.8,2.00479]
[1641680462197,2.00479,3112.5,3111.8,2.89269]
[1641680463898,2.00479,3112.5,3111.8,0.8879]
[1641680464099,0.96394442,3112.3,3111.1,2.91279]
[1641680465998,2.00479,3112.5,3111.9,2.00479]
[1641680466200,2.00479,3112.5,3112.0,1.302757]
[1641680469803,3.10631991,3113.3,3112.0,1.302757]
[1641680470005,5.11110991,3113.3,3112.5,2.00479]
[1641680470208,5.11110991,3113.3,3112.6,0.66197]
[1641680470402,5.11110991,3113.3,3112.6,1.59367]
[1641680470604,5.11110991,3113.3,3112.7,0.640787]
[1641680471405,3.50479,3113.3,3112.7,1.302757]
[1641680473008,3.50479,3113.3,3112.7,0.66197]
[1641680473210,0.96368011,3113.1,3112.7,0.66197]
[1641680473610,0.96368011,3113.1,3112.5,2.00479]
[1641680473910,0.96368011,3113.1,3111.9,2.00479]
[1641680474110,2.00479,3112.9,3111.9,4.00958]
[1641680475513,4.96383495,3112.6,3111.0,1.28872715]
[1641680475713,1.60691359,3112.2,3111.0,1.28872715]
[1641680475915,0.96411847,3111.7,3111.0,1.28872715]
[1641680476113,2.00479,3111.4,3111.0,1.28872715]
[1641680476314,2.93329,3111.4,3111.0,1.28872715]
[1641680476613,0.9285,3111.4,3111.0,1.28872715]
[1641680477114,0.9285,3111.4,3110.9,1.302757]
[1641680477716,0.9285,3111.4,3110.3,2.00479]
[1641680477918,1.89270759,3111.4,3110.3,2.00479]
[1641680478117,2.00479,3111.1,3110.3,2.00479]
[1641680482019,2.00479,3111.1,3110.4,1.302757]
[1641680486921,1.27746699,3111.3,3110.4,1.302757]
[1641680487121,1.27746699,3111.3,3110.4,1.926057]
[1641680487723,2.00479,3111.7,3110.4,1.926057]
[1641680488125,2.00479,3111.7,3111.2,2.00479]
[1641680488325,2.00479,3111.7,3111.3,1.302757]
[1641680488723,2.96360802,3111.9,3111.3,1.302757]
[1641680488924,3.16151583,3112.3,3111.3,1.302757]
[1641680489124,2.00479,3112.3,3111.3,1.302757]
[1641680489728,3.88695902,3112.3,3111.3,1.302757]
[1641680490126,3.88695902,3112.3,3111.7,2.00479]
[1641680490530,3.88695902,3112.3,3111.8,0.66197]
[1641680495434,2.00479,3112.3,3111.8,0.66197]
[1641680498032,2.00479,3112.3,3111.8,2.26819702]
[1641680499735,2.00479,3112.3,3111.8,0.66197]
[1641680500536,0.6619,3112.2,3111.7,2.00479]
[1641680500740,1.60706336,3111.9,3111.0,0.32372715]
[1641680500937,0.96416235,3111.6,3110.0,4.91597731]
[1641680501237,0.96416235,3111.6,3109.7,1.60714343]
[1641680501238,0.96416235,3111.6,3110.4,1.54609404]
[1641680501438,1.60731909,3111.4,3110.4,1.54609404]
[1641680502239,2.00479,3111.4,3110.6,2.00479]
[1641680502439,0.66197,3111.3,3110.6,2.00479]
[1641680503443,0.96428264,3111.2,3110.6,2.00479]
[1641680503641,0.66197,3111.1,3110.6,2.00479]
[1641680504644,0.66197,3111.1,3110.3,2.00479]
[1641680504843,0.9644589,3110.6,3109.6,0.68410161]
[1641680506047,0.9644589,3110.6,3109.3,3.04609404]
[1641680506248,2.00479,3110.4,3109.6,2.00479]
[1641680506448,0.66197,3110.3,3109.6,2.00479]
[1641680507648,0.66197,3110.3,3109.7,0.640787]
[1641680508248,0.66197,3110.3,3109.6,2.00479]
[1641680508459,0.66197,3110.3,3109.8,0.51317882]
[1641680509152,0.96458845,3110.2,3109.8,0.51317882]
[1641680509351,0.66197,3110.1,3109.8,0.51317882]
[1641680509752,0.66197,3110.1,3109.7,1.15396582]
[1641680510453,2.00479,3110.4,3109.7,1.15396582]
[1641680510653,2.00479,3110.4,3109.7,1.87046582]
[1641680510853,2.00479,3110.4,3109.8,0.66197]
[1641680511555,2.66676,3110.4,3109.8,0.66197]
[1641680511754,2.00479,3110.4,3109.8,0.66197]
[1641680512356,2.66676,3110.4,3109.8,0.66197]
[1641680512955,2.66676,3110.4,3109.7,0.7165]
[1641680513155,0.640787,3110.3,3109.7,0.357287]
[1641680513355,0.640787,3110.3,3109.6,2.00479]
[1641680513356,0.66197,3110.2,3109.6,2.00479]
[1641680513555,0.96461334,3110.1,3109.6,2.00479]
[1641680513955,0.66197,3110.0,3109.6,2.00479]
[1641680514355,0.66197,3110.0,3109.3,1.2765837]
[1641680514757,0.66197,3110.0,3108.9,1.2765837]
[1641680515156,5.145273,3109.9,3108.9,1.2765837]
[1641680515358,4.0,3109.8,3108.9,1.2765837]
[1641680515558,5.145273,3109.9,3108.9,1.2765837]
[1641680515760,2.00479,3110.7,3109.8,1.60724675]
[1641680515960,0.0804,3111.5,3110.6,1.60674576]
[1641680516159,2.00479,3111.6,3110.8,2.00479]
[1641680516362,0.640787,3111.5,3110.9,1.302757]
[1641680516561,2.00479,3111.6,3110.9,1.302757]
[1641680517364,2.00479,3111.6,3111.1,1.5]
[1641680517564,2.03204507,3111.7,3111.2,0.66197]
[1641680517767,3.52587656,3111.9,3111.2,0.66197]
[1641680517965,0.81648314,3111.9,3111.5,1.60637925]
[1641680518164,0.81648314,3111.9,3111.8,2.00479]
[1641680518365,0.81648314,3111.9,3111.8,2.645577]
[1641680518564,0.81648314,3111.9,3111.8,3.307547]
[1641680519467,2.82127314,3112.8,3111.8,3.307547]
[1641680521068,2.00479,3112.8,3111.8,3.307547]
[1641680523075,2.00479,3112.8,3111.8,4.9137508]
[1641680524276,2.00479,3112.8,3112.3,2.00479]
[1641680524475,0.640787,3112.7,3112.4,0.66197]
[1641680524674,2.00479,3112.8,3112.5,0.640787]
[1641680524975,2.00479,3112.8,3112.4,0.66197]
[1641680526275,2.00479,3113.1,3112.6,2.00479]
[1641680526473,2.00479,3113.1,3112.7,0.66197]
[1641680526876,31.2144,3113.8,3112.8,0.640787]
[1641680527075,1.6062038,3113.9,3112.9,0.66197]
[1641680527275,1.60595101,3114.1,3112.9,0.66197]
[1641680527974,31.51858855,3114.4,3112.9,0.66197]
[1641680528274,31.51858855,3114.4,3113.8,2.00479]
[1641680528475,4.03683507,3114.5,3113.9,0.66197]
[1641680528677,2.00479,3114.5,3113.9,0.66197]
[1641680528877,2.00479,3114.5,3114.0,0.640787]
[1641680529076,2.00479,3114.5,3114.1,0.66197]
[1641680530076,3.61036455,3114.8,3114.1,0.66197]
[1641680530278,2.03204507,3115.1,3114.2,2.00479]
[1641680530678,0.81467254,3115.1,3114.2,2.00479]
[1641680530879,0.81467254,3115.1,3114.3,14.05]
[1641680531080,0.81467254,3115.1,3114.2,3.50479]
[1641680531081,0.81467254,3115.1,3114.6,17.15477324]
[1641680531280,2.03204507,3116.0,3114.8,1.5]
[1641680531480,0.41804507,3116.0,3115.0,1.5]
[1641680531680,0.41804507,3116.0,3114.7,1.96881104]
[1641680531882,0.41804507,3116.0,3114.7,1.88857104]
[1641680532083,0.41804507,3116.0,3114.7,0.640787]
[1641680532281,2.00479,3115.7,3115.0,2.00479]
[1641680532484,2.00479,3115.7,3115.1,0.66197]
[1641680532681,1.302757,3115.6,3115.0,2.00479]
[1641680532881,2.261157,3115.6,3115.0,2.00479]
[1641680533081,2.261157,3115.6,3115.1,0.66197]
[1641680533281,0.9584,3115.6,3115.1,1.302757]
[1641680534283,2.00479,3116.2,3115.5,2.00479]
[1641680534479,0.66197,3116.1,3115.5,2.00479]
[1641680534684,0.640787,3116.0,3115.5,2.00479]
[1641680535482,0.640787,3116.0,3115.6,0.66197]
[1641680535883,2.00479,3116.5,3115.6,0.66197]
[1641680536384,2.00479,3116.5,3115.9,2.00479]
[1641680536684,2.00479,3116.5,3116.0,1.302757]
[1641680537287,2.00479,3117.0,3116.0,1.302757]
[1641680537487,1.60428151,3117.3,3116.3,1.6038621]
[1641680537785,5.414,3117.9,3116.3,0.7539]
[1641680537984,5.414,3117.9,3116.3,2.2539]
[1641680538184,2.00479,3117.6,3116.8,2.00479]
[1641680538388,1.302757,3117.5,3116.9,0.66197]
[1641680538787,1.302757,3117.5,3116.9,1.302757]
[1641680538985,2.00479,3117.6,3116.9,1.302757]
[1641680539185,1.60408335,3117.7,3116.9,1.302757]
[1641680539384,2.00479,3117.9,3116.9,1.302757]
[1641680540188,0.4889,3118.4,3117.0,1.5]
[1641680540386,2.00479,3118.3,3117.5,2.00479]
[1641680540588,2.00479,3118.3,3117.6,0.66197]
[1641680540787,2.00479,3118.3,3117.6,1.302757]
[1641680541389,2.00479,3118.3,3117.7,14.05]
[1641680541586,2.00479,3118.3,3117.9,14.05]
[1641680541786,1.60326296,3119.3,3117.9,14.05]
[1641680542188,0.6866,3119.6,3118.0,0.08015]
[1641680542388,3.60798613,3119.4,3118.4,2.00479]
[1641680542590,3.60798613,3119.4,3118.4,2.73739]
[1641680542792,1.5,3120.3,3118.4,2.73739]
[1641680542987,31.8699,3120.6,3118.4,2.73739]
[1641680542988,1.5,3120.1,3118.4,2.73739]
[1641680543188,1.5,3119.8,3118.4,2.73739]
[1641680543389,1.5,3119.7,3118.4,2.73739]
[1641680543588,1.5,3119.9,3118.4,2.73739]
[1641680543792,1.5,3120.1,3118.4,2.73739]
[1641680543991,1.5,3119.9,3118.4,2.73739]
[1641680544191,1.5,3119.5,3118.4,2.73739]
[1641680544391,2.00479,3119.1,3118.4,2.00479]
[1641680544591,1.5,3118.8,3117.5,2.00479]
[1641680544793,0.640787,3119.0,3117.5,2.00479]
[1641680544992,2.140787,3119.0,3117.5,2.00479]
[1641680545194,1.5,3118.9,3117.5,2.00479]
[1641680545592,7.317683,3118.9,3117.5,2.00479]
[1641680546292,4.00958,3117.6,3116.6,2.00479]
[1641680546500,4.69348,3117.6,3116.6,2.00479]
[1641680547599,1.5,3117.5,3116.6,2.00479]
[1641680547999,4.69348,3117.6,3116.6,2.00479]
[1641680548199,1.5,3117.2,3114.9,1.5]
[1641680548401,2.00479,3116.8,3115.6,2.00479]
[1641680548599,1.5,3116.6,3114.2,1.54609404]
[1641680548798,2.74119,3116.8,3114.2,1.54609404]
[1641680548799,1.5,3116.4,3114.2,1.54609404]
[1641680549001,3.70373609,3116.8,3113.8,0.08024]
[1641680549002,1.5,3116.3,3113.8,0.08024]
[1641680549199,0.004,3113.8,3113.6,0.08024]
[1641680549501,0.004,3113.8,3113.7,1.302757]
[1641680549799,0.004,3113.8,3113.7,15.352757]
[1641680550000,0.004,3113.8,3113.7,2.90778008]
[1641680550199,0.004,3113.8,3113.7,1.302757]
[1641680550402,0.004,3113.8,3113.7,6.91754043]
[1641680550799,2.00307467,3115.3,3113.7,6.91754043]
[1641680551800,1.60535804,3115.2,3113.7,4.67155]
[1641680552001,1.5,3115.1,3113.7,4.67155]
[1641680552201,1.60539928,3115.1,3113.7,4.67155]
[1641680552403,2.00479,3114.7,3113.7,4.67155]
[1641680552903,0.8014,3115.2,3113.7,4.67155]
[1641680553401,0.8014,3115.2,3113.7,4.00958]
[1641680553600,1.5,3114.6,3112.0,0.08026]